[Event "*** Titled Tuesday Blitz"]
[Site "Chess.com"]
[Date "2019.10.01"]
[Round "6"]
[White "parmupill123"]
[Black "francyIM"]
[Result "1-0"]
[WhiteElo "2523"]
[BlackElo "2653"]
[TimeControl "180+2"]
[EndTime "14:22:24 PDT"]
[Termination "parmupill123 won by resignation"]

1. e4 {[%clk 0:03:01.9]} 1... c6 {[%clk 0:03:00.9]} 2. d4 {[%clk 0:03:02.1]}
2... d5 {[%clk 0:03:02.5]} 3. exd5 {[%clk 0:03:00.7]} 3... cxd5 {[%clk
0:03:03.6]} 4. Bd3 {[%clk 0:03:01.8]} 4... Nc6 {[%clk 0:03:03.6]} 5. c3 {[%clk
0:03:03]} 5... Qc7 {[%clk 0:03:02.7]} 6. Ne2 {[%clk 0:03:03]} 6... Nf6 {[%clk
0:03:01.3]} 7. Bf4 {[%clk 0:03:03]} 7... Qb6 {[%clk 0:03:02.4]} 8. Qb3 {[%clk
0:03:03.2]} 8... Qd8 {[%clk 0:03:01]} 9. Nd2 {[%clk 0:03:01.3]} 9... e6 {[%clk
0:03:02.2]} 10. Nf3 {[%clk 0:03:01.6]} 10... Bd6 {[%clk 0:03:03.5]} 11. O-O
{[%clk 0:03:01.2]} 11... O-O {[%clk 0:03:03.2]} 12. Rfe1 {[%clk 0:02:56.9]}
12... Rb8 {[%clk 0:03:03.5]} 13. Ne5 {[%clk 0:02:56.2]} 13... Qc7 {[%clk
0:03:03]} 14. Qc2 {[%clk 0:02:39.9]} 14... Nxe5 {[%clk 0:03:00.3]} 15. dxe5
{[%clk 0:02:40.4]} 15... Bxe5 {[%clk 0:03:01.1]} 16. Bxe5 {[%clk 0:02:41.8]}
16... Qxe5 {[%clk 0:03:02.4]} 17. Nd4 {[%clk 0:02:41.7]} 17... Qc7 {[%clk
0:03:02.2]} 18. Re3 {[%clk 0:02:41.4]} 18... a6 {[%clk 0:02:57.1]} 19. Rae1
{[%clk 0:02:39]} 19... b5 {[%clk 0:02:53]} 20. a3 {[%clk 0:02:38]} 20... Bb7
{[%clk 0:02:53.5]} 21. Rh3 {[%clk 0:02:26.7]} 21... g6 {[%clk 0:02:53.8]} 22.
Qd2 {[%clk 0:02:21.9]} 22... e5 {[%clk 0:02:45.3]} 23. Nf5 {[%clk 0:02:13.2]}
23... e4 {[%clk 0:02:40.6]} 24. Qh6 {[%clk 0:02:11.2]} 24... gxf5 {[%clk
0:02:37.6]} 25. Qg5+ {[%clk 0:02:11.5]} 25... Kh8 {[%clk 0:02:38.1]} 26. Qxf6+
{[%clk 0:02:12]} 26... Kg8 {[%clk 0:02:39.5]} 27. Rg3+ {[%clk 0:01:28.2]} 27...
Qxg3 {[%clk 0:02:39.4]} 28. hxg3 {[%clk 0:01:30.1]} 28... exd3 {[%clk
0:02:40.9]} 29. Qxf5 {[%clk 0:01:28]} 29... d2 {[%clk 0:02:39]} 30. Rd1 {[%clk
0:01:27.8]} 30... Rfe8 {[%clk 0:02:39.3]} 31. Rxd2 {[%clk 0:01:26.5]} 31... Re6
{[%clk 0:02:39.9]} 32. Rd4 {[%clk 0:01:21.6]} 32... Rbe8 {[%clk 0:02:38.8]} 33.
Rg4+ {[%clk 0:01:17.3]} 33... Kf8 {[%clk 0:02:39.4]} 34. Qxh7 {[%clk 0:01:13]}
34... Re1+ {[%clk 0:02:40.3]} 35. Kh2 {[%clk 0:01:13.2]} 35... R8e6 {[%clk
0:02:41.2]} 36. Rf4 {[%clk 0:01:05.4]} 1-0

[Event "*** Titled Tuesday Blitz"]
[Site "Chess.com"]
[Date "2019.10.01"]
[Round "6"]
[White "cool4chess"]
[Black "dragos420"]
[Result "1-0"]
[WhiteElo "2597"]
[BlackElo "2363"]
[TimeControl "180+2"]
[EndTime "14:22:40 PDT"]
[Termination "cool4chess won by resignation"]

1. e4 {[%clk 0:03:01.9]} 1... e5 {[%clk 0:02:59.1]} 2. Nf3 {[%clk 0:03:01.6]}
2... Nc6 {[%clk 0:02:54.9]} 3. Bb5 {[%clk 0:03:02.7]} 3... a6 {[%clk 0:02:55.9]}
4. Ba4 {[%clk 0:03:04]} 4... Nge7 {[%clk 0:02:57.3]} 5. c3 {[%clk 0:03:03.6]}
5... g6 {[%clk 0:02:58.7]} 6. O-O {[%clk 0:03:04.2]} 6... Bg7 {[%clk 0:02:58.2]}
7. d4 {[%clk 0:03:05.7]} 7... exd4 {[%clk 0:03:00.1]} 8. cxd4 {[%clk 0:03:07.3]}
8... b5 {[%clk 0:03:01.5]} 9. Bc2 {[%clk 0:03:08.3]} 9... O-O {[%clk 0:03:03.1]}
10. d5 {[%clk 0:03:08.3]} 10... Na5 {[%clk 0:03:03.6]} 11. Bd2 {[%clk
0:03:09.6]} 11... c5 {[%clk 0:03:02.4]} 12. Bc3 {[%clk 0:03:06.5]} 12... d6
{[%clk 0:02:56.7]} 13. b3 {[%clk 0:03:02.1]} 13... f6 {[%clk 0:02:55.5]} 14.
Nbd2 {[%clk 0:02:51.8]} 14... Nb7 {[%clk 0:02:53.1]} 15. Re1 {[%clk 0:02:49.9]}
15... g5 {[%clk 0:02:52.4]} 16. Nf1 {[%clk 0:02:50.4]} 16... Ng6 {[%clk
0:02:52]} 17. Ne3 {[%clk 0:02:41.2]} 17... Qc7 {[%clk 0:02:35.1]} 18. Nd2 {[%clk
0:02:28.2]} 18... Nd8 {[%clk 0:02:32.7]} 19. Ndf1 {[%clk 0:02:28.2]} 19... Nf7
{[%clk 0:02:28.2]} 20. Ng3 {[%clk 0:02:26.3]} 20... Nfe5 {[%clk 0:02:28]} 21.
Nef5 {[%clk 0:02:22.6]} 21... Nf4 {[%clk 0:02:23.3]} 22. Bxe5 {[%clk 0:02:04]}
22... fxe5 {[%clk 0:02:20]} 23. Qg4 {[%clk 0:02:05.4]} 23... Qd8 {[%clk
0:02:12.3]} 24. h4 {[%clk 0:02:05.8]} 24... Ra7 {[%clk 0:01:20.8]} 25. hxg5
{[%clk 0:01:57.4]} 25... Kh8 {[%clk 0:01:20.6]} 26. Nh5 {[%clk 0:01:50.3]} 26...
Nxh5 {[%clk 0:01:06.9]} 27. Qxh5 {[%clk 0:01:52.2]} 27... Raf7 {[%clk
0:00:58.2]} 28. g6 {[%clk 0:01:50.8]} 1-0

[Event "*** Titled Tuesday Blitz"]
[Site "Chess.com"]
[Date "2019.10.01"]
[Round "6"]
[White "Rodalquilar"]
[Black "Grieve72"]
[Result "1-0"]
[WhiteElo "2591"]
[BlackElo "2333"]
[TimeControl "180+2"]
[EndTime "14:22:41 PDT"]
[Termination "Rodalquilar won by checkmate"]

1. d4 {[%clk 0:03:01.9]} 1... d5 {[%clk 0:03:00.8]} 2. Nf3 {[%clk 0:03:02.5]}
2... e6 {[%clk 0:03:01.9]} 3. Bf4 {[%clk 0:03:03.6]} 3... Nf6 {[%clk 0:03:02.5]}
4. e3 {[%clk 0:03:04.7]} 4... Bd6 {[%clk 0:03:04.1]} 5. Bg3 {[%clk 0:03:06.1]}
5... O-O {[%clk 0:03:05.7]} 6. c4 {[%clk 0:03:07.3]} 6... c5 {[%clk 0:03:05]} 7.
Nc3 {[%clk 0:03:07.3]} 7... b6 {[%clk 0:02:59.6]} 8. dxc5 {[%clk 0:02:42.7]}
8... bxc5 {[%clk 0:02:55.3]} 9. cxd5 {[%clk 0:02:43.2]} 9... Bxg3 {[%clk
0:02:33.5]} 10. hxg3 {[%clk 0:02:45.1]} 10... exd5 {[%clk 0:02:34.6]} 11. Qc2
{[%clk 0:02:46.3]} 11... Nc6 {[%clk 0:02:26.1]} 12. Rd1 {[%clk 0:02:39.6]} 12...
Be6 {[%clk 0:02:20.2]} 13. Ng5 {[%clk 0:02:31.4]} 13... Nb4 {[%clk 0:02:05.3]}
14. Qb1 {[%clk 0:02:30.7]} 14... h6 {[%clk 0:02:04.7]} 15. Nxe6 {[%clk
0:02:28.5]} 15... fxe6 {[%clk 0:02:06.6]} 16. Qg6 {[%clk 0:02:28.4]} 16... Qa5
{[%clk 0:01:22.9]} 17. Rxh6 {[%clk 0:02:18.5]} 17... Nxa2 {[%clk 0:00:58.9]} 18.
Ra1 {[%clk 0:02:18.8]} 18... d4 {[%clk 0:00:32]} 19. Bc4 {[%clk 0:02:19.5]}
19... Rae8 {[%clk 0:00:25.4]} 20. Rxa2 {[%clk 0:02:20]} 20... Qb4 {[%clk
0:00:23.5]} 21. Rxa7 {[%clk 0:02:21]} 21... Nd7 {[%clk 0:00:06.9]} 22. Rxd7
{[%clk 0:02:14.9]} 22... dxc3 {[%clk 0:00:04.6]} 23. Qxg7# {[%clk 0:02:15.8]}
1-0

[Event "*** Titled Tuesday Blitz"]
[Site "Chess.com"]
[Date "2019.10.01"]
[Round "6"]
[White "PaulfromSPb"]
[Black "GelmanAlexander"]
[Result "1-0"]
[WhiteElo "2664"]
[BlackElo "2501"]
[TimeControl "180+2"]
[EndTime "14:22:43 PDT"]
[Termination "PaulfromSPb won on time"]

1. e4 {[%clk 0:03:01.9]} 1... d5 {[%clk 0:02:59.3]} 2. Nc3 {[%clk 0:03:00.6]}
2... dxe4 {[%clk 0:02:58.1]} 3. Nxe4 {[%clk 0:02:58.7]} 3... e5 {[%clk
0:02:59.3]} 4. Bc4 {[%clk 0:02:53.2]} 4... f5 {[%clk 0:02:53.8]} 5. Nc3 {[%clk
0:02:51.5]} 5... Nf6 {[%clk 0:02:50.7]} 6. d3 {[%clk 0:02:46]} 6... Nc6 {[%clk
0:02:49]} 7. Nf3 {[%clk 0:02:44.9]} 7... f4 {[%clk 0:01:39.6]} 8. h3 {[%clk
0:02:30.9]} 8... Bb4 {[%clk 0:01:19.9]} 9. O-O {[%clk 0:02:30.3]} 9... Bf5
{[%clk 0:01:07.7]} 10. Re1 {[%clk 0:02:22.8]} 10... Bxc3 {[%clk 0:01:01.1]} 11.
bxc3 {[%clk 0:02:23.1]} 11... e4 {[%clk 0:00:54]} 12. Bxf4 {[%clk 0:02:22.2]}
12... Na5 {[%clk 0:00:41.7]} 13. Nd4 {[%clk 0:02:08.1]} 13... Qd7 {[%clk
0:00:24.6]} 14. dxe4 {[%clk 0:02:01.9]} 14... Bxe4 {[%clk 0:00:15.4]} 15. Bd3
{[%clk 0:01:55.1]} 15... Qf5 {[%clk 0:00:06.6]} 16. Bxe4 {[%clk 0:01:53]} 16...
Nxe4 {[%clk 0:00:07.9]} 17. Nxf5 {[%clk 0:01:51.3]} 1-0

[Event "*** Titled Tuesday Blitz"]
[Site "Chess.com"]
[Date "2019.10.01"]
[Round "6"]
[White "Stouuf"]
[Black "AndrewMcStone"]
[Result "1-0"]
[WhiteElo "2610"]
[BlackElo "2152"]
[TimeControl "180+2"]
[EndTime "14:22:50 PDT"]
[Termination "Stouuf won by resignation"]

1. e4 {[%clk 0:03:01.9]} 1... Nc6 {[%clk 0:02:59.8]} 2. Nf3 {[%clk 0:03:02.8]}
2... Nf6 {[%clk 0:02:46.5]} 3. e5 {[%clk 0:03:02.3]} 3... Ng4 {[%clk 0:02:47.4]}
4. d4 {[%clk 0:03:03.5]} 4... d6 {[%clk 0:02:46.2]} 5. h3 {[%clk 0:03:03.9]}
5... Nh6 {[%clk 0:02:47.2]} 6. Bxh6 {[%clk 0:03:05.5]} 6... gxh6 {[%clk
0:02:49.1]} 7. e6 {[%clk 0:03:00.7]} 7... fxe6 {[%clk 0:02:42.7]} 8. Nc3 {[%clk
0:03:00.6]} 8... Bg7 {[%clk 0:02:40.5]} 9. d5 {[%clk 0:02:53.7]} 9... Nb8 {[%clk
0:02:03.7]} 10. Bc4 {[%clk 0:02:48]} 10... e5 {[%clk 0:01:51.6]} 11. Qe2 {[%clk
0:02:42.1]} 11... O-O {[%clk 0:01:49.2]} 12. O-O-O {[%clk 0:02:43.6]} 12... a6
{[%clk 0:01:29.6]} 13. Kb1 {[%clk 0:02:44.2]} 13... b5 {[%clk 0:01:29.6]} 14.
Bd3 {[%clk 0:02:45.7]} 14... Nd7 {[%clk 0:01:20.1]} 15. g4 {[%clk 0:02:45.6]}
15... Nc5 {[%clk 0:01:17.2]} 16. Ne4 {[%clk 0:02:44.9]} 16... Nxd3 {[%clk
0:01:13.9]} 17. Rxd3 {[%clk 0:02:46.8]} 17... Bb7 {[%clk 0:01:01.8]} 18. Rhd1
{[%clk 0:02:37.7]} 18... Rc8 {[%clk 0:00:59.6]} 19. Nh4 {[%clk 0:02:36.9]} 19...
c6 {[%clk 0:00:53]} 20. dxc6 {[%clk 0:02:31.5]} 20... Rxc6 {[%clk 0:00:41.4]}
21. Nf5 {[%clk 0:02:30.7]} 21... Qc7 {[%clk 0:00:30.7]} 22. Neg3 {[%clk
0:02:26]} 22... e4 {[%clk 0:00:23.6]} 23. Qxe4 {[%clk 0:02:24.9]} 23... Rxc2
{[%clk 0:00:18.1]} 24. Qe6+ {[%clk 0:02:25.7]} 24... Kh8 {[%clk 0:00:18.7]} 25.
Nxg7 {[%clk 0:02:27]} 25... Kxg7 {[%clk 0:00:15.6]} 26. Nf5+ {[%clk 0:02:28.5]}
26... Rxf5 {[%clk 0:00:14.5]} 27. gxf5 {[%clk 0:02:29.2]} 27... Rxf2 {[%clk
0:00:10.7]} 28. Rg3+ {[%clk 0:02:30.1]} 1-0

[Event "*** Titled Tuesday Blitz"]
[Site "Chess.com"]
[Date "2019.10.01"]
[Round "6"]
[White "DonRodrigue"]
[Black "Casablanca"]
[Result "1-0"]
[WhiteElo "2706"]
[BlackElo "2196"]
[TimeControl "180+2"]
[EndTime "14:22:54 PDT"]
[Termination "DonRodrigue won by resignation"]

1. d4 {[%clk 0:03:01.2]} 1... e6 {[%clk 0:03:00]} 2. Nf3 {[%clk 0:03:02.3]} 2...
Nf6 {[%clk 0:03:00.1]} 3. c4 {[%clk 0:03:03.4]} 3... Bb4+ {[%clk 0:03:00.6]} 4.
Bd2 {[%clk 0:03:03.4]} 4... Bxd2+ {[%clk 0:03:01.4]} 5. Nbxd2 {[%clk 0:03:03.3]}
5... d5 {[%clk 0:03:00.4]} 6. e3 {[%clk 0:03:01.2]} 6... b6 {[%clk 0:02:55.1]}
7. cxd5 {[%clk 0:02:59.9]} 7... exd5 {[%clk 0:02:55.7]} 8. Rc1 {[%clk
0:02:59.8]} 8... Bb7 {[%clk 0:02:55]} 9. Bd3 {[%clk 0:02:59.3]} 9... Nbd7 {[%clk
0:02:55.4]} 10. O-O {[%clk 0:02:59.9]} 10... O-O {[%clk 0:02:56.1]} 11. Qc2
{[%clk 0:02:58.9]} 11... Rc8 {[%clk 0:02:55.2]} 12. Ne5 {[%clk 0:02:57.8]} 12...
Re8 {[%clk 0:02:54.5]} 13. Nxd7 {[%clk 0:02:57.2]} 13... Qxd7 {[%clk 0:02:55.3]}
14. Bf5 {[%clk 0:02:57.2]} 14... Qd6 {[%clk 0:02:54.1]} 15. Bxc8 {[%clk
0:02:58]} 15... Rxc8 {[%clk 0:02:55.2]} 16. Qa4 {[%clk 0:02:57.1]} 16... a6
{[%clk 0:02:53.4]} 17. Nf3 {[%clk 0:02:58.3]} 17... Nd7 {[%clk 0:02:53.6]} 18.
Rc2 {[%clk 0:02:56.7]} 18... c5 {[%clk 0:02:44.8]} 19. dxc5 {[%clk 0:02:55.8]}
19... bxc5 {[%clk 0:02:45.7]} 20. Rfc1 {[%clk 0:02:55.3]} 20... Re8 {[%clk
0:02:45.6]} 21. b3 {[%clk 0:02:45.6]} 21... Re4 {[%clk 0:02:45]} 22. Qa3 {[%clk
0:02:46.1]} 22... Qg6 {[%clk 0:02:43.1]} 23. Qa5 {[%clk 0:02:43.3]} 23... Rg4
{[%clk 0:02:37.3]} 24. g3 {[%clk 0:02:40.8]} 24... d4 {[%clk 0:02:37.2]} 25.
Rxc5 {[%clk 0:02:41.7]} 25... Nf8 {[%clk 0:02:04.1]} 26. Qb4 {[%clk 0:02:36.1]}
26... Qe4 {[%clk 0:00:43.6]} 27. Rc8 {[%clk 0:02:35.2]} 27... h5 {[%clk
0:00:28.4]} 28. Qxf8+ {[%clk 0:02:32.4]} 28... Kh7 {[%clk 0:00:29.1]} 29. Qh8+
{[%clk 0:02:34.3]} 29... Kg6 {[%clk 0:00:29.7]} 30. R8c6+ {[%clk 0:02:24.8]}
30... Bxc6 {[%clk 0:00:29.7]} 31. Rxc6+ {[%clk 0:02:26.4]} 31... Qxc6 {[%clk
0:00:30.7]} 32. Ne5+ {[%clk 0:02:28]} 32... Kf5 {[%clk 0:00:28.4]} 33. Nxc6
{[%clk 0:02:29.9]} 33... dxe3 {[%clk 0:00:29.7]} 34. fxe3 {[%clk 0:02:30.6]}
34... Rc4 {[%clk 0:00:30.4]} 35. bxc4 {[%clk 0:02:31.2]} 1-0

[Event "*** Titled Tuesday Blitz"]
[Site "Chess.com"]
[Date "2019.10.01"]
[Round "6"]
[White "oskariot"]
[Black "ferdipy"]
[Result "1-0"]
[WhiteElo "2687"]
[BlackElo "2171"]
[TimeControl "180+2"]
[EndTime "14:23:09 PDT"]
[Termination "oskariot won by resignation"]

1. c4 {[%clk 0:03:01.9]} 1... e5 {[%clk 0:03:00.6]} 2. g3 {[%clk 0:03:03.8]}
2... Nc6 {[%clk 0:03:00.6]} 3. Bg2 {[%clk 0:03:05.7]} 3... g6 {[%clk 0:03:01]}
4. Nc3 {[%clk 0:03:06.4]} 4... Bg7 {[%clk 0:03:02.4]} 5. e3 {[%clk 0:03:08]}
5... d6 {[%clk 0:03:02.6]} 6. Nge2 {[%clk 0:03:09.9]} 6... Be6 {[%clk
0:03:02.6]} 7. d3 {[%clk 0:03:11]} 7... Nf6 {[%clk 0:02:46.6]} 8. Rb1 {[%clk
0:03:11.4]} 8... a5 {[%clk 0:02:47]} 9. Nd5 {[%clk 0:03:11.6]} 9... O-O {[%clk
0:02:45.5]} 10. O-O {[%clk 0:03:12.5]} 10... Qd7 {[%clk 0:02:40.8]} 11. Nec3
{[%clk 0:03:12.5]} 11... Ne8 {[%clk 0:02:13.8]} 12. a3 {[%clk 0:03:06.5]} 12...
Nd8 {[%clk 0:02:04.6]} 13. b4 {[%clk 0:02:59.9]} 13... f5 {[%clk 0:01:57.4]} 14.
b5 {[%clk 0:02:54.3]} 14... h6 {[%clk 0:01:46.1]} 15. Bb2 {[%clk 0:02:46.8]}
15... g5 {[%clk 0:01:44.1]} 16. f4 {[%clk 0:02:47.7]} 16... Nf6 {[%clk
0:01:34.8]} 17. Nxf6+ {[%clk 0:02:48.1]} 17... Bxf6 {[%clk 0:01:36.7]} 18. Nd5
{[%clk 0:02:49.2]} 18... Bg7 {[%clk 0:01:36.2]} 19. Qc2 {[%clk 0:02:42.4]} 19...
Rb8 {[%clk 0:01:26.2]} 20. Rbe1 {[%clk 0:02:27.1]} 20... c6 {[%clk 0:01:24.1]}
21. Nc3 {[%clk 0:02:28.2]} 21... Nf7 {[%clk 0:01:22.5]} 22. Qa4 {[%clk
0:02:26.2]} 22... cxb5 {[%clk 0:01:18.4]} 23. Qxb5 {[%clk 0:02:28.1]} 23... b6
{[%clk 0:00:44.6]} 24. Qxd7 {[%clk 0:02:27.1]} 24... Bxd7 {[%clk 0:00:45.1]} 25.
Nd5 {[%clk 0:02:28.4]} 25... b5 {[%clk 0:00:35.5]} 26. cxb5 {[%clk 0:02:29.3]}
26... Bxb5 {[%clk 0:00:35.6]} 27. Ba1 {[%clk 0:02:30.9]} 27... Bxd3 {[%clk
0:00:35]} 28. Rf2 {[%clk 0:02:32.3]} 28... e4 {[%clk 0:00:33.7]} 29. Ne7+ {[%clk
0:02:27.4]} 29... Kh7 {[%clk 0:00:33.8]} 30. Bxg7 {[%clk 0:02:28.6]} 30... Kxg7
{[%clk 0:00:34.5]} 31. Nxf5+ {[%clk 0:02:30.5]} 31... Kf6 {[%clk 0:00:35.2]} 32.
fxg5+ {[%clk 0:02:30.9]} 32... Kxg5 {[%clk 0:00:35.1]} 33. h4+ {[%clk
0:02:30.4]} 33... Kg6 {[%clk 0:00:35.8]} 34. Rc1 {[%clk 0:02:22.8]} 34... Rbc8
{[%clk 0:00:33.7]} 35. Rxc8 {[%clk 0:02:21.4]} 1-0

[Event "*** Titled Tuesday Blitz"]
[Site "Chess.com"]
[Date "2019.10.01"]
[Round "6"]
[White "Msb2"]
[Black "TheLancer"]
[Result "1-0"]
[WhiteElo "2887"]
[BlackElo "2562"]
[TimeControl "180+2"]
[EndTime "14:23:10 PDT"]
[Termination "Msb2 won by resignation"]

1. d4 {[%clk 0:03:01.9]} 1... Nf6 {[%clk 0:02:59.6]} 2. c4 {[%clk 0:03:03.5]}
2... e6 {[%clk 0:03:00.5]} 3. Nc3 {[%clk 0:03:05]} 3... Bb4 {[%clk 0:03:02]} 4.
e3 {[%clk 0:03:06.4]} 4... O-O {[%clk 0:03:01.6]} 5. Bd2 {[%clk 0:03:08.1]} 5...
c5 {[%clk 0:03:01.8]} 6. a3 {[%clk 0:03:07.6]} 6... Bxc3 {[%clk 0:03:00.4]} 7.
Bxc3 {[%clk 0:03:09.5]} 7... Ne4 {[%clk 0:03:01.8]} 8. Ne2 {[%clk 0:03:10]} 8...
d6 {[%clk 0:02:45.6]} 9. dxc5 {[%clk 0:03:10.7]} 9... Nxc3 {[%clk 0:02:45.5]}
10. Nxc3 {[%clk 0:03:12.6]} 10... dxc5 {[%clk 0:02:46.7]} 11. Qc2 {[%clk
0:03:14.3]} 11... Qe7 {[%clk 0:02:32.3]} 12. Bd3 {[%clk 0:03:15]} 12... h6
{[%clk 0:02:27.5]} 13. O-O-O {[%clk 0:03:16]} 13... Nc6 {[%clk 0:02:21.6]} 14.
f4 {[%clk 0:03:17.2]} 14... Rb8 {[%clk 0:02:11.6]} 15. Rhg1 {[%clk 0:03:18]}
15... a6 {[%clk 0:02:02]} 16. g4 {[%clk 0:03:19]} 16... Bd7 {[%clk 0:01:48.3]}
17. g5 {[%clk 0:03:19.9]} 17... hxg5 {[%clk 0:01:32.9]} 18. Rxg5 {[%clk
0:03:19.3]} 18... f5 {[%clk 0:01:13.6]} 19. Rdg1 {[%clk 0:02:52.1]} 19... Rf7
{[%clk 0:01:05.3]} 20. Qg2 {[%clk 0:02:51.2]} 20... b5 {[%clk 0:00:37.8]} 21.
Bxf5 {[%clk 0:02:50.2]} 21... b4 {[%clk 0:00:24.6]} 22. Bg6 {[%clk 0:02:51.7]}
22... bxc3 {[%clk 0:00:16.5]} 23. Bxf7+ {[%clk 0:02:52.9]} 23... Kf8 {[%clk
0:00:18.1]} 24. Rxg7 {[%clk 0:02:53]} 24... cxb2+ {[%clk 0:00:18]} 25. Kb1
{[%clk 0:02:54.6]} 25... Qf6 {[%clk 0:00:16.4]} 26. Qg6 {[%clk 0:02:33.9]} 26...
Qc3 {[%clk 0:00:12.5]} 27. Bg8 {[%clk 0:02:09]} 27... Nd8 {[%clk 0:00:03.6]} 1-0

[Event "*** Titled Tuesday Blitz"]
[Site "Chess.com"]
[Date "2019.10.01"]
[Round "6"]
[White "XDPS"]
[Black "albi1999"]
[Result "0-1"]
[WhiteElo "2760"]
[BlackElo "2541"]
[TimeControl "180+2"]
[EndTime "14:23:19 PDT"]
[Termination "albi1999 won by resignation"]

1. Nf3 {[%clk 0:03:01.9]} 1... d5 {[%clk 0:02:53.1]} 2. d4 {[%clk 0:02:56.5]}
2... Nf6 {[%clk 0:02:52.9]} 3. c4 {[%clk 0:02:57.7]} 3... e6 {[%clk 0:02:52.5]}
4. Nc3 {[%clk 0:02:57.2]} 4... Bb4 {[%clk 0:02:52.7]} 5. cxd5 {[%clk 0:02:55.9]}
5... exd5 {[%clk 0:02:52.4]} 6. Bg5 {[%clk 0:02:57.2]} 6... h6 {[%clk 0:02:53]}
7. Bh4 {[%clk 0:02:57.8]} 7... O-O {[%clk 0:02:52]} 8. e3 {[%clk 0:02:58.5]}
8... Bf5 {[%clk 0:02:53.5]} 9. Qb3 {[%clk 0:02:58.3]} 9... Bxc3+ {[%clk
0:02:52.4]} 10. bxc3 {[%clk 0:02:53.5]} 10... Nbd7 {[%clk 0:02:44.9]} 11. Be2
{[%clk 0:02:54.2]} 11... c5 {[%clk 0:02:44.3]} 12. O-O {[%clk 0:02:54.1]} 12...
c4 {[%clk 0:02:40]} 13. Qa3 {[%clk 0:02:55.1]} 13... g5 {[%clk 0:02:30.6]} 14.
Bg3 {[%clk 0:02:55.7]} 14... Ne4 {[%clk 0:02:32.1]} 15. Rfc1 {[%clk 0:02:43.3]}
15... b5 {[%clk 0:02:32.4]} 16. Qb2 {[%clk 0:02:31.2]} 16... Qb6 {[%clk
0:02:19.7]} 17. Bd1 {[%clk 0:02:06.7]} 17... a5 {[%clk 0:02:17.3]} 18. a3 {[%clk
0:02:07.7]} 18... Nxg3 {[%clk 0:02:15.6]} 19. hxg3 {[%clk 0:02:08.6]} 19... Rab8
{[%clk 0:02:08.1]} 20. Bc2 {[%clk 0:01:51.1]} 20... Qg6 {[%clk 0:02:08]} 21. Ne1
{[%clk 0:01:48.2]} 21... Rb6 {[%clk 0:02:04.2]} 22. Rab1 {[%clk 0:01:39.3]}
22... Rfb8 {[%clk 0:02:03.7]} 23. g4 {[%clk 0:01:36.7]} 23... Bxc2 {[%clk
0:01:49.7]} 24. Qxc2 {[%clk 0:01:38.6]} 24... b4 {[%clk 0:01:44]} 25. Qxg6+
{[%clk 0:01:36.1]} 25... fxg6 {[%clk 0:01:42.1]} 26. cxb4 {[%clk 0:01:37]} 26...
axb4 {[%clk 0:01:44]} 27. axb4 {[%clk 0:01:38.2]} 27... Rxb4 {[%clk 0:01:44]}
28. Ra1 {[%clk 0:01:38.9]} 28... Nf6 {[%clk 0:01:41.7]} 29. Nc2 {[%clk
0:01:29.2]} 29... R4b6 {[%clk 0:01:38]} 30. f3 {[%clk 0:01:25.6]} 30... h5
{[%clk 0:01:39.6]} 31. gxh5 {[%clk 0:01:26.4]} 31... gxh5 {[%clk 0:01:41.5]} 32.
Ra7 {[%clk 0:01:25.7]} 32... R8b7 {[%clk 0:01:41.2]} 33. Ra5 {[%clk 0:01:25.8]}
33... Kf7 {[%clk 0:01:41.4]} 34. e4 {[%clk 0:01:21.1]} 34... Rb1 {[%clk
0:01:42]} 35. Rxb1 {[%clk 0:01:20.6]} 35... Rxb1+ {[%clk 0:01:43.9]} 36. Kh2
{[%clk 0:01:21.6]} 36... dxe4 {[%clk 0:01:40.6]} 37. fxe4 {[%clk 0:01:23.5]}
37... Ng4+ {[%clk 0:01:29.7]} 38. Kg3 {[%clk 0:01:23.9]} 38... Rb3+ {[%clk
0:01:30.1]} 0-1

[Event "*** Titled Tuesday Blitz"]
[Site "Chess.com"]
[Date "2019.10.01"]
[Round "6"]
[White "kasparicy"]
[Black "HanSchut"]
[Result "1-0"]
[WhiteElo "2415"]
[BlackElo "2221"]
[TimeControl "180+2"]
[EndTime "14:23:20 PDT"]
[Termination "kasparicy won by resignation"]

1. e4 {[%clk 0:02:59.7]} 1... c5 {[%clk 0:02:59.9]} 2. Nf3 {[%clk 0:02:43.6]}
2... d6 {[%clk 0:03:00.7]} 3. d4 {[%clk 0:02:45]} 3... cxd4 {[%clk 0:03:02]} 4.
Nxd4 {[%clk 0:02:46.9]} 4... Nf6 {[%clk 0:03:03.4]} 5. Nc3 {[%clk 0:02:48.8]}
5... a6 {[%clk 0:03:05.3]} 6. Qf3 {[%clk 0:02:47.8]} 6... g6 {[%clk 0:02:57.4]}
7. h3 {[%clk 0:02:44.8]} 7... Bg7 {[%clk 0:02:57.4]} 8. Be3 {[%clk 0:02:46.4]}
8... O-O {[%clk 0:02:56.5]} 9. O-O-O {[%clk 0:02:47.9]} 9... Qc7 {[%clk
0:02:37.1]} 10. Kb1 {[%clk 0:02:48.8]} 10... Nc6 {[%clk 0:02:29.1]} 11. g4
{[%clk 0:02:49.2]} 11... Be6 {[%clk 0:02:04.2]} 12. g5 {[%clk 0:02:43.4]} 12...
Nh5 {[%clk 0:01:57.7]} 13. Nd5 {[%clk 0:02:41.9]} 13... Bxd5 {[%clk 0:01:46.7]}
14. exd5 {[%clk 0:02:43.8]} 14... Ne5 {[%clk 0:01:36.5]} 15. Qg2 {[%clk
0:02:44.8]} 15... Rfc8 {[%clk 0:01:27.5]} 16. f4 {[%clk 0:02:45.8]} 16... Nc4
{[%clk 0:01:27.7]} 17. Bxc4 {[%clk 0:02:46.9]} 17... Qxc4 {[%clk 0:01:27.9]} 18.
f5 {[%clk 0:02:48.5]} 18... Nf4 {[%clk 0:01:14.1]} 19. Qe4 {[%clk 0:02:38.6]}
19... Nxd5 {[%clk 0:01:06.3]} 20. fxg6 {[%clk 0:02:38.2]} 20... hxg6 {[%clk
0:00:49]} 21. h4 {[%clk 0:02:27.6]} 21... Nxe3 {[%clk 0:00:43.8]} 22. Qxe3
{[%clk 0:02:28.2]} 22... Bxd4 {[%clk 0:00:43.2]} 23. Rxd4 {[%clk 0:02:28.2]}
23... Qxc2+ {[%clk 0:00:44.2]} 24. Ka1 {[%clk 0:02:29.8]} 24... Rc5 {[%clk
0:00:33.5]} 25. a3 {[%clk 0:02:18.6]} 25... Rb5 {[%clk 0:00:25]} 26. Rd2 {[%clk
0:02:19.2]} 26... Qc6 {[%clk 0:00:21.4]} 27. Rf1 {[%clk 0:02:09]} 27... Rc5
{[%clk 0:00:18.1]} 28. Rdf2 {[%clk 0:02:02.7]} 28... Rc1+ {[%clk 0:00:18.3]} 29.
Rxc1 {[%clk 0:02:02.7]} 1-0